Cogmind - Beta 11 @@@ ROGUE MODE // 2022.04.02 @ 14:37:58 Player: zapruda Result: Destroyed by Y-45 Defender with Heavy Assault Rifle Performance ------------- Evolutions (1) 500 Regions Visited (2) 400 Robots Destroyed (25) 125 Value Destroyed (577) 577 Prototype IDs (0) 0 Alien Tech Used (0) 0 Bonus (0) 0 TOTAL SCORE: 1602 Bonus ------- None Cogmind --------- Core Integrity 0/400 Matter 282/300 Energy 100/100 System Corruption 0% Temperature Cool (0) Movement Core (200) Ox3 Location -9/Materials Parts ------- > --- POWER (1) -------- (None) > --- PROPULSION (2) --- (None) > --- UTILITY (4) ------ Medium Storage Unit Structural Scanner Signal Interpreter > --- WEAPON (2) ------- Light Assault Rifle > --- INVENTORY (10) --- Improved Aluminum Leg Hover Unit Medium Battery (150) Weight Redist. System Weight Redist. System Sensor Array Shield Generator Peak State ------------ > --- POWER ------------ Ion Engine > --- PROPULSION ------- Improved Aluminum Leg Improved Aluminum Leg > --- UTILITY ---------- Improved Heat Sink Medium Storage Unit Structural Scanner Signal Interpreter > --- WEAPON ----------- Beam Rifle Beam Rifle > --- INVENTORY -------- Improved Aluminum Leg Improved Aluminum Leg Hover Unit Medium Battery Weight Redist. System Weight Redist. System Sensor Array Shield Generator [Rating: 16] Favorites ----------- Power Ion Engine Engine Ion Engine Propulsion Aluminum Leg Leg Aluminum Leg Hover Unit Hover Unit Flight Unit Flight Unit Utility Medium Storage Unit Device Improved Heat Sink Storage Medium Storage Unit Processor Signal Interpreter Weapon Beam Rifle Energy Gun Beam Rifle Ballistic Gun Light Assault Rifle Special Weapon Welding Torch Build | -11 -10 -9 ------- Run | Scr Mat Mat Slots Evolved 2 | . . 2 Power . | . . . Propulsion . | . . . Utility 2 | . . 2 Weapon . | . . . Parts Attached 29 | . 22 7 Power 4 | . 3 1 Engine 4 | . 3 1 Core . | . . . Reactor . | . . . Propulsion 9 | . 8 1 Treads . | . . . Leg 6 | . 5 1 Wheel . | . . . Hover 1 | . 1 . Flight 2 | . 2 . Utility 8 | . 5 3 Device 6 | . 3 3 Storage 1 | . 1 . Processor 1 | . 1 . Hackware . | . . . Protection . | . . . Artifact . | . . . Weapon 8 | . 6 2 Energy Gun 5 | . 5 . Energy Cannon . | . . . Ballistic Gun 2 | . 1 1 Ballistic Cannon . | . . . Launcher . | . . . Special Weapon 1 | . . 1 Impact Weapon . | . . . Slashing Weapon . | . . . Piercing Weapon . | . . . Special Melee Weapon . | . . . Unidentified Prototypes . | . . . Parts Lost 11 | . 2 9 Power 3 | . 1 2 Propulsion 3 | . . 3 Utility 1 | . . 1 Weapon 4 | . 1 3 Highest Loss Streak 8 | . 1 8 To Critical Strikes . | . . . Average Slot Usage (%) 96 | . 97 88 Engine 12 | . 13 7 Leg 24 | . 25 18 Flight 1 | . 1 . Device 9 | . 8 20 Storage 13 | . 14 11 Processor 6 | . 5 11 Energy Gun 21 | . 22 16 Ballistic Gun 3 | . 4 1 Naked Turns . | . . . Heaviest Build 23 | 10 22 23 Greatest Support 26 | 20 26 26 Greatest Overweight (x) 1 | . 1 . Average Overweight (x) . | . . . Largest Inventory Capacity 10 | 8 10 10 Average Capacity 9 | 8 9 10 Most Carried 10 | 5 10 9 Average Carried 8 | 5 9 8 Final Capacity 10 | 8 10 10 Final Carried 10 | 5 10 7 Class Distribution -------------------- 87% | Mutant 6% | Scavenger-Mutant 5% | Skirmisher Dominant Class ---------------- Mutant | -10/Materials Mutant | -9/Materials Resources | -11 -10 -9 ----------- Run | Scr Mat Mat Matter Collected 446 | 173 270 3 Remotely . | . . . Salvage Created 769 | . 553 216 Parts 47 | . 36 11 Haulers Intercepted 2 | . 2 . Recyclers Shooed 3 | . 3 . Parts Field Recycled . | . . . Retrieved Matter . | . . . Parts Self-Destructed . | . . . Prevented . | . . . Kills | -11 -10 -9 ------- Run | Scr Mat Mat Combat Hostiles Destroyed 17 | . 10 7 Guns 16 | . 9 7 Classes Destroyed 6 | . 6 . Worker 2 | . 2 . Hauler 2 | . 2 . Operator 2 | . 2 . Watcher 2 | . 2 . Swarmer 5 | . 2 3 Grunt 12 | . 8 4 Best Kill Streak 3 | . 3 3 Combat Bots Only 3 | . 3 3 Max Kills in Single Turn 2 | . 1 2 Gunslinging 1 | . . 1 Exploded . | . . . Melee . | . . . Uniques/NPCs Destroyed . | . . . Combat | -11 -10 -9 -------- Run | Scr Mat Mat Damage Taken 1777 | . 623 1154 Core 552 | . 149 403 Absorbed by Shields . | . . . Core Remaining (%) 70 | 100 40 . Volleys Fired 100 | . 69 31 Largest 2 | . 2 2 Hottest 121 | . 121 112 Shots Fired 173 | . 131 42 Gun 171 | . 131 40 Cannon . | . . . Launcher . | . . . Special 2 | . . 2 Kinetic 50 | . 37 13 Thermal 123 | . 94 29 Explosive . | . . . Electromagnetic . | . . . Robot Hit Streak 8 | . 8 8 Robot Miss Streak 4 | . 4 2 Penetration Max . | . . . Secondary Targets 2 | . 1 1 Max Gunslinging Chain 1 | . 1 1 Shots Hit Robots 104 | . 74 30 Core Hits 47 | . 31 16 Critical Kills . | . . . Critical Parts Destroyed . | . . . Critical Strikes 10 | . 6 4 Burn 10 | . 6 4 Melee Attacks . | . . . Impact . | . . . Slashing . | . . . Piercing . | . . . Sneak Attacks . | . . . Combat Hostiles . | . . . Follow-up Attacks . | . . . Damage Inflicted 1389 | . 993 396 Guns 1332 | . 970 362 Cannons . | . . . Explosions . | . . . Melee . | . . . Ramming 53 | . 23 30 Kinetic 228 | . 169 59 Thermal 1108 | . 801 307 Explosive . | . . . Electromagnetic . | . . . Impact . | . . . Slashing . | . . . Piercing . | . . . Highest Corruption . | . . . Average Corruption . | . . . Corruption Purged . | . . . Corruption Blocked . | . . . Overload Shots . | . . . Overflow Damage . | . . . Projectiles . | . . . Explosions . | . . . Melee . | . . . Knockbacks . | . . . Impact . | . . . Kinetic . | . . . Secondary . | . . . Self-Inflicted Damage 1 | . 1 . Shots . | . . . Rammed 1 | . 1 . Targets Rammed 17 | . 4 13 Kicked 16 | . 3 13 Crushed . | . . . Highest Temperature 332 | . 204 332 Average Temperature 72 | . 52 138 Received Heat Transfer 876 | . 321 555 Effects 1 | . . 1 Short Circuit 1 | . . 1 Siege Activations . | . . . Robots Corrupted . | . . . Combat Hostiles . | . . . Parts Fried . | . . . Impact Corruptions . | . . . Robots Melted 1 | . 1 . Combat Hostiles 1 | . 1 . Parts Melted 5 | . 3 2 Heat Transferred 3577 | . 2479 1098 Parts Sabotaged . | . . . Parts Stolen . | . . . Parts Stripped . | . . . Power Chain Reactions . | . . . Missiles Intercepted . | . . . Alert | -11 -10 -9 ------- Run | Scr Mat Mat Peak Influence 200 | . 200 187 Initial 8 | . . 8 Average 48 | . 40 108 Maximum Alert Level 1 | . 1 . Low Security (%) 99 | 100 98 100 Level 1 . | . 1 . Level 2 . | . . . Level 3 . | . . . Level 4 . | . . . Level 5 . | . . . High Security . | . . . Max Security . | . . . Squads Dispatched 4 | . 3 1 Investigation 2 | . 1 1 Extermination . | . . . Reinforcement 2 | . 2 . Assault . | . . . Garrison . | . . . Intercept . | . . . Searches Triggered . | . . . Construction Impeded . | . . . Haulers Reinforced . | . . . Active Scanning Responses . | . . . Cargo Convoy Interrupts . | . . . Stealth | -11 -10 -9 --------- Run | Scr Mat Mat Distress Signals 1 | . . 1 Communications Jammed . | . . . Distress Signals . | . . . Times Spotted 31 | . 20 11 Peak Tracking Total 8 | . 3 8 Tactical Retreats . | . . . Traps | -11 -10 -9 ------- Run | Scr Mat Mat Traps Triggered 1 | . 1 . Indirectly . | . . . Trap Hack Attempts . | . . . Triggered . | . . . Disarmed . | . . . Reprogrammed . | . . . Reused . | . . . Traps Extracted . | . . . Installed . | . . . Triggered . | . . . Machines | -11 -10 -9 ---------- Run | Scr Mat Mat Machines Disabled 1 | . 1 . Max in Single Turn 1 | . 1 . Machines Sabotaged . | . . . Garrisons Compromised . | . . . Overloaded Fab Kills . | . . . Hacking | -11 -10 -9 --------- Run | Scr Mat Mat Machines Accessed 7 | . 6 1 Terminals 6 | . 5 1 Fabricators . | . . . Repair Stations . | . . . Recycling Units 1 | . 1 . Scanalyzers . | . . . Garrison Access . | . . . Total Hacks 24 | . 15 9 Successful 11 | . 5 6 Failed 13 | . 10 3 Catastrophic 3 | . 3 . Database Lockouts . | . . . Manual 13 | . 7 6 Terminals 23 | . 14 9 Fabricators . | . . . Repair Stations . | . . . Recycling Units 1 | . 1 . Scanalyzers . | . . . Garrison Access . | . . . Terminal Hacks 10 | . 4 6 Level Access Points 1 | . . 1 Branch Access Points 1 | . 1 . Emergency Access Points 2 | . 1 1 Terminal Index 1 | . . 1 Alert Level 1 | . 1 . Surveillance Status 1 | . . 1 Registered Components 1 | . . 1 Registered Prototypes 1 | . 1 . Zone Layout 1 | . . 1 Fabricator Hacks . | . . . Repair Station Hacks . | . . . Recycling Unit Hacks 1 | . 1 . Retrieve Components 1 | . 1 . Scanalyzer . | . . . Garrison Access Hacks . | . . . Unauthorized Hacks . | . . . Terminals . | . . . Fabricators . | . . . Repair Stations . | . . . Recycling Units . | . . . Scanalyzers . | . . . Garrison Access . | . . . Data Cores Recovered . | . . . Used . | . . . Hacking Detections 6 | . 5 1 Full Trace Events 2 | . 1 1 Feedback Events . | . . . Feedback Blocked . | . . . Robot Schematics Acquired . | . . . Robots Built . | . . . Authchips . | . . . Time . | . . . Total Robot Build Rating . | . . . Part Schematics Acquired . | . . . Parts Built . | . . . Authchips . | . . . Time . | . . . Total Part Build Rating . | . . . Parts Repaired . | . . . Time . | . . . Parts Recycled . | . . . Recycled Matter . | . . . Retrieved Matter . | . . . Retrieved Components 2 | . 2 . Parts Scanalyzed . | . . . Part Schematics Acquired . | . . . Parts Damaged . | . . . Bothacking | -11 -10 -9 ------------ Run | Scr Mat Mat Used RIF Installer . | . . . Robots Hacked . | . . . Non-combat . | . . . Combat . | . . . Robot Hacks Applied . | . . . Relay Couplers Released . | . . . Fabnet Peak Effective % . | . . . Robots Rewired . | . . . Allies Hacked . | . . . Hacks Repelled . | . . . Allies | -11 -10 -9 -------- Run | Scr Mat Mat Total Allies . | . . . Largest Group . | . . . Highest-Rated Group . | . . . Highest-Rated Ally . | . . . Total Orders . | . . . Ally Attacks . | . . . Total Damage . | . . . Kills . | . . . Allies Corrupted . | . . . Allies Melted . | . . . Intel | -11 -10 -9 ------- Run | Scr Mat Mat Robot Analysis Total . | . . . Derelict Logs Recovered . | . . . Drone Launches . | . . . Drone Recoveries . | . . . Exploration | -11 -10 -9 ------------- Run | Scr Mat Mat Turns Passed 1588 | 1 1401 186 Spaces Moved 939 | 1 870 68 Core . | . . . Treads . | . . . Legs 865 | 1 796 68 Wheels . | . . . Hover 30 | . 30 . Flight 44 | . 44 . Fastest Speed 117 | 120 117 120 Average Speed 128 | 120 128 120 Slowest Speed 190 | 120 190 120 Overloaded Moves . | . . . Propulsion Burnouts . | . . . Robots Hopped . | . . . Cave-ins Triggered . | . . . Exploration Rate (%) 36 | 2 98 10 Regions Visited 2 Branch Regions . Pre-discovered Areas . | . . . Known Exits Taken 1 | . 1 . Unknown Exits Taken 1 | 1 . . Scrap Searched . | . . . Spaces Dug . | . . . Terrain Destroyed . | . . . Melee . | . . . Projectile . | . . . AOE . | . . . Terrain Rammed . | . . . Walls Destroyed . | . . . Machines Disabled . | . . . Actions | -11 -10 -9 --------- Run | Scr Mat Mat Total 1159 | 1 1031 127 Wait 25 | . 20 5 Move 937 | . 869 68 Hop . | . . . Pick Up 28 | . 25 3 Fast Attach 2 | . 2 . Attach 14 | . 8 6 Detach 2 | . 2 . Swap 13 | . 12 1 Drop 21 | 1 20 . Fire 100 | . 69 31 Melee . | . . . Ram 1 | . 1 . Kick 16 | . 3 13 Crush . | . . . Escape Stasis . | . . . Rewire . | . . . Trap . | . . . Miscellaneous . | . . . Route ------- -11/Scrapyard -10/Materials (discovered 4 exits: *Mat x3 / *Min) -9/Materials (discovered 3 exits: Mat x3) History --------- Turn | Location | Event 2 | -11/Scrapyard | Discovered new exit (range 0) 2 | -11/Scrapyard | Entered Materials 168 | -10/Materials | Discovered new exit (range 3) 317 | -10/Materials | Build established: Mutant 386 | -10/Materials | Core integrity fell below 50% 916 | -10/Materials | Identified exit to Mines 1032 | -10/Materials | Discovered new exit (range 13) 1240 | -10/Materials | Discovered new exit (range 6) 1402 | -10/Materials | Identified exit to Materials 1403 | -10/Materials | Entered another Materials area 1403 | -9/Materials | Evolved 2 slots: Utility x2 1456 | -9/Materials | Identified exit to Materials 1548 | -9/Materials | Core integrity fell below 50% 1571 | -9/Materials | Core integrity fell below 20% 1589 | -9/Materials | Destroyed by Y-45 Defender with Heavy Assault Rifle Last Messages --------------- 01538_ Kicked Y-45 Defender. 01538_ Imp. Aluminum Leg destroyed. 01540_ Kicked Y-45 Defender. 01542_ Broken Beam Rifle destroyed. 01542_ K-01 Serf collects debris. 01542_ Acquired 3 matter. 01544_ Kicked G-34 Mercenary. 01548_ Kicked G-34 Mercenary out of the way. 01551_ Acquired Welding Torch. 01551_ K-01 Serf collects debris. 01555_ G-34 Mercenary destroyed. 01555_ K-01 Serf collects debris. 01558_ K-01 Serf destroyed. 01559_ K-01 Serf collects debris. 01560_ Kicked K-01 Serf. 01564_ Welding Torch destroyed. 01564_ Acquired Lgt. Assault Rifle. 01564_ Imp. Heat Sink destroyed. 01572_ G-47 Trooper destroyed. 01580_ Imp. Aluminum Leg destroyed. Map ----- +----------------------------------------------------+ | ?????????????????????????????????????????????????? | | ?????????????????????????????????????????????????? | | ?????????????????????????????????????????????????? | | ?????????????????????????????????????????????????? | | ???????????#######???????????????????????????????? | | ???????????#######???????????????????????????????? | | ???????????## ##???????????????????????????????? | | ???????????## ##???????????????????????????????? | | ???????????## ##???????????????????????????????? | | ???????????## ##???????????????????????????????? | | ???????????## ##???????????????????????????????? | | ???????????## #########????????????????????????? | | ????######### #########????????????????????????? | | ????######### # """ ##??????###???????????????? | | ????## # # """ # ?????? ##???????????????? | | ????## """ # # """ # ?????? ##???????????????? | | ????## """ + + # ????" ##???????????????? | | ????## """ # # # ????" ##???????????????? | | ????## # # # ??? ##???????????????? | | ???### # ######## ??? " + ???????????????? | | ???########## ######## ?? T ##???????????????? | | ???## # ##????????? "??????????????????? | | ???## "" # ######## #######??????????? | | ???## "T ! + ##########+############??????????? | | ???## "" # %%*%= %%=[ # ??????????? | | ???## | # !%%%Y!%=@%* # ??????????? | | ???########## =%%%%=*!*%[ [[! # ??????????? | | ???################+######=%= [[! # ??????????? | | ??????????## =% # [!! # ??????????? | | ??????????## """ """ """ # # ??????????? | | ??????????## """ """ """ # = # ??????????? | | ??????????## """ """ """ # # ??????????? | | ???????????# # # ??????????? | | ???????????# ! # ##??????????? | | ???????????############### """ ##??????????? | | ???????????######## ? """ ##??????????? | | ??????????????????# ????? "??? ????????????? | | ??????????????????# ????? ??????????????????? | | ??????????????????# ????? ?????????????????